bitfinex/quotes_ETHUSD_20240608
["timestamp","ask_amount","ask_price","bid_price","bid_amount"]
[1717842063678,0.22353062,3689.8,3689.7,0.29645602]
[1717842063901,0.22353062,3689.8,3688.8,2.71085]
[1717842064055,0.22353062,3689.8,3689.7,0.28845602]
[1717842064254,0.22353062,3689.8,3689.5,0.008]
[1717842064494,0.22353062,3689.8,3689.6,0.29609238]
[1717842064860,0.22353062,3689.8,3689.5,0.008]
[1717842065088,0.22353062,3689.8,3689.6,0.29609238]
[1717842065493,0.22353062,3689.8,3689.5,0.008]
[1717842065705,0.22353062,3689.8,3689.3,0.717]
[1717842065859,0.22353062,3689.8,3689.6,0.29609238]
[1717842066056,0.22353062,3689.8,3689.5,0.008]
[1717842066257,0.22353062,3689.8,3689.6,0.29609238]
[1717842066457,3.0,3690.1,3689.5,0.008]
[1717842066758,3.74318,3690.1,3689.6,0.29609238]
[1717842067092,3.74318,3690.1,3689.6,0.008]
[1717842067293,3.74318,3690.1,3689.5,0.008]
[1717842067656,3.74318,3690.1,3689.6,0.29609238]
[1717842067860,3.74318,3690.1,3689.6,0.008]
[1717842068090,0.645308,3690.0,3689.5,0.008]
[1717842068492,0.645308,3690.0,3689.6,0.29609238]
[1717842068493,0.71306698,3690.0,3689.6,0.29609238]
[1717842068794,0.92179999,3690.0,3689.6,0.30409238]
[1717842068998,0.76812321,3689.9,3689.6,0.008]
[1717842069159,0.76812321,3689.9,3689.3,0.008]
[1717842069356,1.114822,3689.9,3689.3,0.008]
[1717842069595,1.114822,3689.9,3689.4,0.29609238]
[1717842069799,0.4391314,3689.8,3689.5,0.008]
[1717842069955,0.4391314,3689.8,3689.4,0.30409238]
[1717842070160,0.4391314,3689.8,3689.4,0.008]
[1717842070361,0.4391314,3689.8,3689.5,0.29609238]
[1717842070671,0.20873301,3690.0,3689.5,0.008]
[1717842070858,0.20873301,3690.0,3689.6,0.29609238]
[1717842071201,0.20873301,3690.0,3689.6,0.008]
[1717842071359,0.20873301,3690.0,3689.5,0.008]
[1717842071699,0.20873301,3690.0,3689.6,0.29609238]
[1717842071913,0.20873301,3690.0,3689.6,0.30409238]
[1717842072073,0.20873301,3690.0,3689.6,0.008]
[1717842072281,0.20873301,3690.0,3689.7,0.29609238]
[1717842072487,0.20873301,3690.0,3689.6,0.008]
[1717842072693,0.20873301,3690.0,3689.9,0.717]
[1717842073271,0.20873301,3690.0,3689.9,1.01309238]
[1717842082300,0.20873301,3690.0,3689.9,0.29609238]
[1717842082689,0.20873301,3690.0,3689.7,0.725]
[1717842082877,0.20873301,3690.0,3689.8,0.29609238]
[1717842083073,0.20873301,3690.0,3689.7,0.717]
[1717842083283,0.20873301,3690.0,3689.8,0.29609238]
[1717842083614,0.20873301,3690.0,3689.6,0.725]
[1717842083785,0.20873301,3690.0,3689.9,0.29609238]
[1717842083986,0.20873301,3690.0,3689.6,0.725]
[1717842083987,0.20873301,3690.0,3689.7,0.008]
[1717842084204,0.20873301,3690.0,3689.9,0.29609238]
[1717842084393,0.20873301,3690.0,3689.7,0.008]
[1717842084709,0.20873301,3690.0,3689.4,0.008]
[1717842084896,0.20873301,3690.0,3689.8,0.29609238]
[1717842085099,0.40857191,3690.0,3689.6,0.008]
[1717842085278,0.40857191,3690.0,3689.4,0.008]
[1717842085479,0.47632984,3690.0,3689.5,0.29609238]
[1717842085681,3.83560191,3690.0,3689.5,0.30409238]
[1717842085871,4.18340403,3690.0,3689.5,0.008]
[1717842086213,3.57742381,3689.9,3689.2,0.008]
[1717842086413,3.57742381,3689.9,3689.3,0.008]
[1717842086610,3.57742381,3689.9,3689.3,0.30409238]
[1717842086814,3.57742381,3689.9,3689.4,0.008]
[1717842086977,0.77608278,3689.8,3689.3,0.008]
[1717842088798,0.77608278,3689.8,3689.2,0.008]
[1717842089134,0.77608278,3689.8,3688.3,0.1234268]
[1717842089135,0.20873301,3690.0,3689.5,0.717]
[1717842089273,0.20873301,3690.0,3689.7,0.717]
[1717842089679,0.20873301,3690.0,3689.8,0.29609238]
[1717842089872,0.20873301,3690.0,3689.7,0.717]
[1717842090120,0.20873301,3690.0,3689.8,0.29609238]
[1717842090487,0.20873301,3690.0,3689.7,0.717]
[1717842090689,0.20873301,3690.0,3689.8,0.29609238]
[1717842090920,0.20873301,3690.0,3689.7,0.717]
[1717842091109,0.20873301,3690.0,3689.9,0.29609238]
[1717842091313,0.20873301,3690.0,3689.7,0.725]
[1717842091496,0.20873301,3690.0,3689.9,0.29609238]
[1717842091695,0.20873301,3690.0,3689.7,0.725]
[1717842091905,0.20873301,3690.0,3689.8,0.29609238]
[1717842092226,0.20873301,3690.0,3689.7,0.717]
[1717842092390,0.20873301,3690.0,3689.9,0.29609238]
[1717842092595,0.20873301,3690.0,3689.7,0.725]
[1717842092801,0.20873301,3690.0,3689.9,0.29609238]
[1717842093005,0.20873301,3690.0,3689.7,0.725]
[1717842093369,0.20873301,3690.0,3689.9,0.717]
[1717842093901,0.20873301,3690.0,3689.9,1.01309238]
[1717842098688,0.20873301,3690.0,3689.9,0.29609238]
[1717842098888,0.20873301,3690.0,3689.9,0.717]
[1717842099088,0.20873301,3690.0,3689.9,1.01309238]
[1717842100093,0.20873301,3690.0,3689.9,3.44799238]
[1717842105647,0.20873301,3690.0,3689.9,2.73099238]
[1717842105842,0.20873301,3690.0,3689.9,3.44799238]
[1717842118456,1.0049,3691.1,3690.2,2.70983]
[1717842118655,1.0049,3691.1,3689.9,5.39084704]
[1717842118656,1.0049,3691.1,3690.9,0.717]
[1717842119095,1.0049,3691.1,3691.0,0.29609238]
[1717842124666,1.0049,3691.6,3691.0,0.29609238]
[1717842124894,2.5164482,3691.6,3690.9,0.717]
[1717842125123,3.0,3691.5,3691.1,0.717]
[1717842125267,3.0,3691.5,3691.2,0.29609238]
[1717842125469,3.58572655,3691.5,3691.2,0.29609238]
[1717842125771,0.63118488,3691.4,3691.2,0.29609238]
[1717842127729,0.63118488,3691.4,3691.3,0.29609238]
[1717842128024,0.63118488,3691.4,3690.8,2.70941]
[1717842128179,0.63118488,3691.4,3691.3,0.29609238]
[1717842128380,0.63118488,3691.4,3690.8,2.70941]
[1717842128581,0.63118488,3691.4,3691.3,0.29609238]
[1717842128780,0.63118488,3691.4,3690.8,2.70941]
[1717842128995,0.63118488,3691.4,3691.3,0.29609238]
[1717842129197,0.63118488,3691.4,3690.8,2.70941]
[1717842129381,0.63118488,3691.4,3691.3,0.29609238]
[1717842129614,0.63118488,3691.4,3690.8,2.70941]
[1717842129797,3.58572655,3691.5,3691.3,0.29609238]
[1717842129798,3.58574277,3691.5,3691.3,0.29609238]
[1717842129993,3.0,3691.5,3690.8,2.70941]
[1717842130417,3.0,3691.5,3690.9,0.29609238]
[1717842131307,3.38613546,3691.5,3690.9,0.29609238]
[1717842131695,3.97187311,3691.5,3690.9,0.29609238]
[1717842134913,1.0049,3691.4,3690.9,0.29609238]
[1717842135128,1.39103546,3691.4,3690.6,0.717]
[1717842135327,1.39103546,3691.4,3691.0,0.29609238]
[1717842135566,4.10003546,3691.4,3690.5,0.008]
[1717842135706,0.95134488,3691.3,3691.1,0.29609238]
[1717842135902,1.0049,3691.1,3690.5,0.008]
[1717842136107,2.70945,3690.8,3690.6,0.29609238]
[1717842136334,0.38613546,3690.7,3690.2,0.008]
[1717842136536,0.38613546,3690.7,3690.3,0.29609238]
[1717842136706,0.38613546,3690.7,3689.9,0.725]
[1717842136707,0.38613546,3690.7,3690.0,0.008]
[1717842136915,0.38613546,3690.7,3690.1,0.29609238]
[1717842137230,1.06574903,3690.7,3690.1,0.717]
[1717842137434,1.06574903,3690.7,3690.2,0.29609238]
[1717842143222,1.13349672,3690.7,3690.2,0.29609238]
[1717842143434,1.0049,3690.6,3690.2,0.29609238]
[1717842143621,0.48478467,3690.5,3690.2,0.29609238]
[1717842146354,1.0049,3690.4,3690.2,0.29609238]
[1717842146523,1.0049,3690.3,3690.2,0.29609238]
[1717842146723,2.04458887,3690.3,3690.0,0.008]
[1717842146954,2.04458887,3690.3,3689.4,0.717]
[1717842146955,0.45389446,3690.2,3689.8,0.008]
[1717842147111,0.45389446,3690.2,3689.7,0.008]
[1717842147112,1.96341383,3690.2,3689.7,0.008]
[1717842147312,1.96341383,3690.2,3689.8,0.28426824]
[1717842147512,4.96341383,3690.2,3689.9,0.008]
[1717842147724,4.96341383,3690.2,3689.7,0.008]
[1717842148054,1.00709685,3690.1,3689.8,0.28426824]
[1717842148240,4.00709685,3690.1,3689.8,0.29226824]
[1717842148547,4.00709685,3690.1,3689.8,0.008]
[1717842148752,4.00709685,3690.1,3689.7,0.008]
[1717842148924,1.00709685,3690.1,3689.7,0.008]
[1717842149111,0.86939026,3690.0,3689.8,0.28426824]
[1717842149312,0.86939026,3690.0,3689.8,0.008]
[1717842149651,0.86939026,3690.0,3689.7,0.008]
[1717842150042,0.86939026,3690.0,3689.8,0.28426824]
[1717842150357,0.86939026,3690.0,3689.8,0.008]
[1717842150655,0.86939026,3690.0,3689.7,0.008]
[1717842150950,0.86939026,3690.0,3689.8,0.28426824]
[1717842151153,0.86939026,3690.0,3689.8,0.008]
[1717842151314,0.86939026,3690.0,3689.7,0.008]
[1717842151510,0.86939026,3690.0,3689.8,0.28426824]
[1717842151711,0.86939026,3690.0,3689.8,0.008]
[1717842151910,0.86939026,3690.0,3689.7,0.008]
[1717842152146,0.86939026,3690.0,3689.8,0.28426824]
[1717842152457,0.86939026,3690.0,3689.7,0.008]
[1717842152949,0.86939026,3690.0,3689.8,0.28426824]
[1717842153152,0.86939026,3690.0,3689.8,0.008]
[1717842153493,0.86939026,3690.0,3689.7,0.008]
[1717842153965,0.86939026,3690.0,3689.8,0.28426824]
[1717842154114,0.86939026,3690.0,3689.8,0.29226824]
[1717842154317,0.86939026,3690.0,3689.8,0.008]
[1717842154662,0.86939026,3690.0,3689.7,0.008]
[1717842155152,0.86939026,3690.0,3689.8,0.28426824]
[1717842155312,0.86939026,3690.0,3689.8,0.008]
[1717842155513,0.86939026,3690.0,3689.7,0.008]
[1717842155714,0.86939026,3690.0,3689.8,0.28426824]
[1717842155978,0.38693903,3689.9,3689.8,0.008]
[1717842156120,0.38693903,3689.9,3689.6,0.008]
[1717842156322,0.86939026,3690.0,3689.7,0.28426824]
[1717842156523,0.86939026,3690.0,3689.8,0.008]
[1717842156941,0.86939026,3690.0,3689.7,0.008]
[1717842157150,0.86939026,3690.0,3689.8,0.28426824]
[1717842157362,0.39371484,3689.9,3689.8,0.29226824]
[1717842157558,0.39371484,3689.9,3689.8,0.008]
[1717842157869,0.39371484,3689.9,3689.6,0.008]
[1717842158234,0.39371484,3689.9,3689.7,0.28426824]
[1717842158429,0.39371484,3689.9,3689.7,0.29226824]
[1717842158673,0.39371484,3689.9,3689.7,0.008]
[1717842158874,0.39371484,3689.9,3689.8,0.28426824]
[1717842159046,0.39371484,3689.9,3689.8,0.29226824]
[1717842159249,0.39371484,3689.9,3689.8,0.008]
[1717842159501,0.39371484,3689.9,3689.6,0.008]
[1717842159637,3.10381484,3689.9,3689.6,0.008]
[1717842159841,2.7101,3689.9,3689.7,0.28426824]
[1717842160144,2.7101,3689.9,3689.7,0.008]
[1717842160360,2.7101,3689.9,3689.6,0.008]
[1717842164684,2.71024,3689.7,3689.6,0.008]
[1717842164879,2.71024,3689.7,3688.9,0.717]
[1717842164880,4.87295241,3689.7,3688.9,0.717]
[1717842165096,4.87295241,3689.7,3689.4,0.008]
[1717842168150,5.45898648,3689.7,3689.4,0.008]
[1717842171612,4.87295241,3689.7,3689.4,0.008]
[1717842171824,0.5910543,3689.6,3689.4,0.008]
[1717842183927,0.5910543,3689.6,3689.3,0.008]
[1717842184156,0.5910543,3689.6,3689.4,0.29221332]
[1717842184358,0.5910543,3689.6,3689.5,0.008]
[1717842184562,0.5910543,3689.6,3689.4,0.008]
[1717842185473,0.65128899,3689.5,3689.4,0.008]
[1717842185662,0.65128899,3689.5,3689.3,0.008]
[1717842186048,0.65128899,3689.5,3689.4,0.28421332]
[1717842186358,4.9249356,3689.7,3689.4,0.28421332]
[1717842186531,4.9249356,3689.7,3688.9,0.717]
[1717842186532,4.33891841,3689.7,3688.9,0.717]
[1717842186735,0.008,3689.6,3689.0,0.28421332]
[1717842189647,0.008,3689.6,3688.7,5.90256]
[1717842189872,0.008,3689.5,3689.1,0.28421332]
[1717842190038,0.008,3689.6,3688.7,5.90256]
[1717842190244,0.008,3689.5,3689.2,0.28421332]
[1717842190477,0.6607541,3689.5,3688.7,5.18556]
[1717842190747,0.6607541,3689.5,3688.6,0.717]
[1717842190748,3.72338,3689.4,3688.6,0.717]
[1717842191059,0.06777299,3689.3,3688.7,0.28421332]
[1717842191701,0.06777299,3689.3,3688.6,0.717]
[1717842192015,0.07577299,3689.3,3688.7,0.28421332]
[1717842192227,0.06777299,3689.3,3688.7,0.28421332]
[1717842192753,3.72338,3689.4,3688.7,0.28421332]
[1717842197358,6.17633337,3689.4,3688.7,0.28421332]
[1717842197566,0.58601719,3689.3,3688.6,0.717]
[1717842197745,0.59401719,3689.3,3688.6,0.717]
[1717842197952,0.59401719,3689.3,3688.7,0.28421332]
[1717842198152,0.58601719,3689.3,3688.7,0.28421332]
[1717842199853,0.58601719,3689.3,3688.6,0.717]
[1717842200021,0.59401719,3689.3,3688.8,0.28421332]
[1717842200227,0.58601719,3689.3,3688.6,0.717]
[1717842200427,0.59401719,3689.3,3688.9,0.28421332]
[1717842200667,0.59401719,3689.3,3688.6,0.717]
[1717842200668,1.23876068,3689.3,3688.6,0.717]
[1717842200852,0.59401719,3689.3,3689.0,0.28421332]
[1717842201065,0.58601719,3689.3,3688.6,0.717]
[1717842201360,0.59401719,3689.3,3688.7,0.28421332]
[1717842201667,5.49466262,3689.4,3688.7,0.28421332]
[1717842206294,7.08327269,3689.4,3688.7,0.28421332]
[1717842206576,0.58605971,3689.3,3688.7,0.28421332]
[1717842211783,2.71848,3689.4,3688.8,2.3655]
[1717842211982,2.71848,3689.4,3688.8,3.0825]
[1717842212185,2.71848,3689.4,3688.9,0.28421332]
[1717842212384,2.71048,3689.4,3688.9,0.28421332]
[1717842237468,2.71048,3689.4,3689.0,2.4312]
[1717842237840,2.71048,3689.4,3689.1,0.28390015]
[1717842243980,0.008,3689.5,3689.3,0.717]
[1717842244135,0.008,3689.7,3689.4,2.4427]
[1717842244337,0.008,3689.8,3689.4,2.4427]
[1717842244637,0.008,3689.8,3689.5,0.28390015]
[1717842244832,0.008,3689.9,3689.5,0.28390015]
[1717842245068,0.008,3689.9,3689.4,2.4427]
[1717842247610,0.008,3689.9,3689.8,0.717]
[1717842247752,0.008,3690.0,3689.8,0.717]
[1717842248084,0.008,3690.0,3689.8,1.00090015]
[1717842248892,0.008,3690.2,3689.8,0.717]
[1717842249386,0.008,3690.2,3689.9,2.4427]
[1717842250040,0.008,3690.2,3690.0,0.28390015]
[1717842251317,0.008,3690.2,3690.1,2.4427]
[1717842251447,0.008,3690.3,3690.1,2.4427]
[1717842251840,0.008,3690.3,3690.2,0.28390015]
[1717842252876,0.008,3690.5,3690.2,0.28390015]
[1717842254384,0.008,3690.4,3690.2,0.28390015]
[1717842254538,0.008,3690.3,3690.2,0.28390015]
[1717842255044,0.20648784,3690.4,3690.2,0.27590015]
[1717842258657,2.91622784,3690.4,3690.2,0.27590015]
[1717842258883,3.0,3690.3,3690.2,0.27590015]
[1717842259094,3.82239691,3690.3,3690.2,0.27590015]
[1717842259293,4.40823814,3690.3,3690.2,0.27590015]
[1717842259599,3.82239691,3690.3,3690.0,0.008]
[1717842259783,2.71014,3689.9,3689.0,2.3883]
[1717842260095,2.71028,3689.7,3689.1,0.27064849]
[1717842260298,3.0,3689.6,3689.1,0.27064849]
[1717842260600,3.0,3689.6,3689.2,0.27064849]
[1717842260804,1.0049,3689.4,3688.2,2.3883]
[1717842261011,2.71054,3689.3,3688.3,0.8404268]
[1717842261306,3.08154123,3689.3,3688.4,0.27064849]
[1717842261518,4.97099967,3689.3,3688.4,0.27064849]
[1717842261663,3.0,3689.2,3688.3,0.8404268]
[1717842262088,3.0,3689.2,3688.4,0.27064849]
[1717842262490,3.0,3689.2,3688.3,0.8404268]
[1717842262796,3.0,3689.2,3688.4,0.27064849]
[1717842263001,3.0,3689.2,3688.3,0.8404268]
[1717842263156,3.0,3689.2,3688.4,0.27064849]
[1717842263354,4.05078104,3689.2,3688.3,0.8404268]
[1717842263604,4.05078104,3689.2,3688.4,0.27064849]
[1717842263895,4.05078104,3689.2,3688.3,0.8404268]
[1717842264300,4.05078104,3689.2,3688.4,0.27064849]
[1717842264799,4.05078104,3689.2,3688.3,0.8404268]
[1717842264961,4.05078104,3689.2,3688.4,0.27064849]
[1717842265302,4.05078104,3689.2,3688.3,0.8404268]
[1717842265599,4.05078104,3689.2,3688.4,0.27064849]
[1717842265803,1.02470769,3689.1,3688.4,0.27064849]
[1717842266102,1.02470769,3689.1,3688.3,0.8404268]
[1717842268002,2.77853537,3689.0,3688.3,0.1234268]
[1717842268201,3.0,3688.9,3688.3,0.1234268]
[1717842268963,3.0,3688.9,3688.4,0.27064849]
[1717842269205,3.78234689,3688.9,3688.3,0.1234268]
[1717842270565,3.78234689,3688.9,3688.4,0.27064849]
[1717842276361,4.78724689,3688.9,3688.4,0.27064849]
[1717842278058,3.78234689,3688.9,3688.4,0.27064849]
[1717842280928,4.14534812,3688.9,3688.4,0.27064849]
[1717842281135,0.75731081,3688.8,3688.4,0.27064849]
[1717842281978,1.0049,3688.7,3688.4,0.27064849]
[1717842282158,1.36790123,3688.7,3688.4,0.27064849]
[1717842282532,1.0049,3688.7,3688.4,0.27064849]
[1717842283588,2.71105,3688.6,3688.4,0.27064849]
[1717842283754,3.4836262,3688.5,3688.4,0.27064849]
[1717842286500,2.60303695,3688.5,3688.4,0.27064849]
[1717842290680,3.18920938,3688.5,3688.4,0.27064849]
[1717842290882,2.60303695,3688.5,3688.4,0.27064849]
[1717842295019,0.008,3688.7,3688.4,0.27064849]
[1717842295216,3.0,3688.5,3688.4,0.27064849]
[1717842295714,0.008,3688.7,3688.4,0.27064849]
[1717842295912,0.008,3688.8,3688.4,0.27064849]
[1717842300993,0.008,3688.8,3688.5,3.194]
[1717842301206,0.008,3688.8,3688.7,0.717]
[1717842301388,0.008,3688.9,3688.8,2.7109]
[1717842301736,0.008,3689.3,3688.9,2.477]
[1717842301881,0.008,3689.3,3689.2,0.717]
[1717842302089,0.008,3689.4,3688.9,2.477]
[1717842302283,0.717,3689.8,3688.9,2.477]
[1717842302284,0.008,3689.3,3689.2,0.27064849]
[1717842302604,0.717,3689.8,3688.9,2.477]
[1717842302605,0.008,3689.4,3688.9,2.477]
[1717842302933,0.008,3689.3,3688.9,2.477]
[1717842303232,0.008,3689.3,3688.6,0.717]
[1717842303537,1.0049,3689.6,3688.6,0.717]
[1717842303538,0.008,3689.1,3688.6,0.717]
[1717842303754,0.008,3689.1,3688.7,0.27064849]
[1717842303881,0.717,3689.2,3688.7,0.27064849]
[1717842303882,0.008,3689.0,3688.7,0.27064849]
[1717842304088,0.008,3689.0,3688.3,0.1234268]
[1717842304439,0.008,3688.9,3688.3,0.1234268]
[1717842304816,0.008,3688.8,3688.4,0.27064849]
[1717842305019,0.79393037,3688.8,3688.4,0.27064849]
[1717842305825,1.1447691,3688.8,3688.4,0.27064849]
[1717842306022,1.21255006,3688.8,3688.4,0.27064849]
[1717842306393,1.1447691,3688.8,3688.4,0.27064849]
[1717842306621,1.21255012,3688.8,3688.4,0.27064849]
[1717842306829,1.1447691,3688.8,3688.4,0.27064849]
[1717842307642,0.91636315,3688.7,3688.4,0.27064849]
[1717842307838,0.92436315,3688.7,3688.4,0.27064849]
[1717842309074,2.71105,3688.6,3688.4,0.27064849]
[1717842309255,3.0,3688.5,3688.4,0.27064849]
[1717842309415,3.58617243,3688.5,3688.4,0.27064849]
[1717842309751,4.51931645,3688.5,3688.4,0.27064849]
[1717842310444,4.51931645,3688.5,3688.3,0.1234268]
[1717842317643,3.93314402,3688.5,3688.3,0.1234268]
[1717842318403,4.51931183,3688.5,3688.3,0.1234268]
[1717842319049,3.93314402,3688.5,3688.3,0.1234268]
[1717842319660,3.0,3688.5,3688.4,2.74344849]
[1717842319860,0.2182123,3688.6,3688.4,2.74344849]
[1717842320499,0.2182123,3688.6,3688.4,0.27064849]
[1717842320668,0.2182123,3688.6,3688.3,0.1234268]
[1717842320873,0.2182123,3688.6,3688.4,0.27064849]
[1717842322909,0.2182123,3688.6,3688.3,0.1234268]
[1717842323390,0.2182123,3688.6,3688.4,0.27064849]
[1717842325213,0.2182123,3688.6,3688.5,2.4728]
[1717842325663,0.2182123,3688.6,3688.5,2.74344849]
[1717842327919,0.2182123,3688.6,3688.5,0.27064849]
[1717842331409,1.2231123,3688.6,3688.5,0.27064849]
[1717842331592,2.71144,3688.1,3687.0,2.71217]
[1717842331792,2.71175,3687.7,3687.2,4.00749285]
[1717842332035,2.71193,3687.4,3687.3,0.25834629]
[1717842332237,3.42893,3687.4,3687.3,0.25834629]
[1717842332412,7.66510674,3687.4,3687.3,0.24604408]
[1717842332732,8.25124223,3687.4,3686.0,2.71291]
[1717842332933,0.008,3687.1,3686.3,0.717]
[1717842333234,2.7123,3686.9,3686.1,0.24224066]
[1717842333401,2.7123,3686.9,3686.1,0.717]
[1717842333595,3.0,3686.8,3686.2,0.23724066]
[1717842333803,0.008,3686.6,3686.2,0.23724066]
[1717842334139,0.008,3686.6,3685.4,2.71338]
[1717842334379,0.008,3686.3,3685.4,2.71338]
[1717842334536,0.008,3686.3,3685.9,0.717]
[1717842334735,0.008,3686.4,3685.9,0.717]
[1717842334931,0.008,3686.4,3684.9,2.71375]
[1717842335248,0.008,3686.1,3685.8,0.717]
[1717842335463,0.008,3686.4,3685.8,0.717]
[1717842335655,0.008,3686.4,3686.0,0.717]
[1717842335858,0.008,3686.4,3686.1,0.23911574]
[1717842336173,0.22082692,3686.5,3685.5,2.71327]
[1717842336336,0.008,3686.3,3686.2,0.23911574]
[1717842336534,0.22082692,3686.5,3685.5,4.10612466]
[1717842336737,0.008,3686.3,3686.2,0.23911574]
[1717842336930,2.93346692,3686.5,3685.1,2.4426]
[1717842337179,0.008,3686.1,3685.1,2.4426]
[1717842337331,0.008,3686.1,3685.2,0.23911574]
[1717842337535,0.008,3686.1,3685.1,2.4426]
[1717842337735,0.008,3686.1,3685.3,0.23911574]
[1717842338078,0.008,3686.1,3685.1,2.4426]
[1717842338079,0.008,3686.2,3685.1,2.4426]
[1717842338377,0.008,3686.1,3685.1,2.4426]
[1717842338671,0.008,3686.0,3685.1,2.4426]
[1717842339293,0.008,3685.6,3684.5,2.71406]
[1717842339450,0.008,3685.5,3685.0,0.23911574]
[1717842341642,0.008,3685.5,3685.1,0.29603433]
[1717842342050,0.008,3685.7,3685.1,0.29603433]
[1717842342364,0.008,3685.7,3685.2,0.23911574]
[1717842343479,0.008,3685.7,3685.3,2.71347]
[1717842343649,0.008,3685.8,3685.3,2.71347]
[1717842343856,0.008,3685.8,3685.4,0.23911574]
[1717842344399,0.008,3685.8,3685.5,0.23911574]
[1717842344894,0.008,3685.8,3685.6,0.23911574]
[1717842345099,0.008,3685.9,3685.3,2.71347]
[1717842345296,0.008,3685.8,3685.3,4.10632466]
[1717842345700,0.008,3685.8,3685.5,2.71333]
[1717842345902,0.008,3685.9,3685.5,2.71333]
[1717842346105,0.008,3685.9,3685.6,0.23911574]
[1717842347578,2.71227,3687.0,3685.6,0.23911574]
[1717842347579,12.38,3688.1,3686.6,2.71247]
[1717842347921,2.982684,3688.0,3686.8,2.71234]
[1717842348121,0.2731544,3687.9,3686.9,0.23911574]
[1717842349505,0.2731544,3687.9,3686.8,2.71234]
[1717842350334,0.2731544,3687.9,3687.0,2.71221]
[1717842350873,0.2731544,3687.9,3687.1,0.23911574]
[1717842351078,0.32558384,3687.8,3687.1,0.23911574]
[1717842352219,3.2731544,3687.9,3687.2,2.71206]
[1717842352415,3.0,3688.1,3687.2,2.71206]
[1717842352830,3.0,3688.1,3687.3,0.23911574]
[1717842356232,3.0,3688.1,3687.4,2.71189]
[1717842356640,3.0,3688.4,3687.4,2.71189]
[1717842356834,0.59293923,3688.3,3687.5,0.23911574]
[1717842357038,0.59293923,3688.3,3687.4,2.71189]
[1717842359947,2.71118,3688.5,3687.4,2.71189]
[1717842360321,2.71118,3688.5,3687.5,0.23911574]
[1717842364475,3.0,3688.4,3687.5,0.23911574]
[1717842369463,2.972,3688.4,3687.9,0.008]
[1717842369978,2.972,3688.4,3688.0,0.23911574]
[1717842370178,0.59013923,3688.3,3688.1,0.008]
[1717842370494,0.59013923,3688.3,3688.0,0.24711574]
[1717842370636,0.59013923,3688.3,3688.0,0.008]
[1717842370831,6.59479466,3688.2,3688.1,0.23911574]
[1717842371066,2.71201,3687.3,3686.1,2.71288]
[1717842371232,2.72001,3687.3,3686.1,6.71288]
[1717842371427,2.72001,3687.3,3686.2,0.21737794]
[1717842371626,3.0,3687.2,3686.2,0.21737794]
[1717842383645,3.0,3687.2,3686.4,2.4625]
[1717842383850,3.05288786,3687.7,3686.5,1.735]
[1717842383851,0.008,3687.4,3686.5,1.735]
[1717842384046,0.008,3687.5,3686.5,1.735]
[1717842384274,0.008,3687.5,3686.6,0.21737794]
[1717842384486,3.008,3687.6,3686.5,1.735]
[1717842384687,0.008,3687.5,3686.7,0.21737794]
[1717842384902,3.0,3687.6,3686.5,1.735]
[1717842384903,3.008,3687.6,3686.5,1.735]
[1717842385053,0.008,3687.5,3686.8,0.21737794]
[1717842385253,3.008,3687.6,3686.6,2.7125]
[1717842385758,3.008,3687.6,3686.7,0.21737794]
[1717842387690,3.008,3687.6,3686.8,2.71237]
[1717842388265,3.008,3687.6,3686.9,0.21737794]
[1717842388475,3.0,3687.6,3686.9,0.21737794]
[1717842394581,3.0,3687.6,3686.9,0.723]
[1717842394760,0.63060378,3687.5,3687.0,0.21737794]
[1717842399910,2.71202,3687.3,3687.0,0.21737794]
[1717842400119,2.71215,3687.1,3687.0,0.21737794]
[1717842400330,5.71215,3687.1,3686.3,0.723]
[1717842400474,1.01050047,3687.0,3686.3,0.723]
[1717842400820,1.01050047,3687.0,3686.4,0.21737794]
[1717842400821,2.418,3686.8,3686.4,0.21737794]
[1717842401019,0.06782049,3686.7,3686.4,0.21737794]
[1717842401233,0.06782049,3686.7,3685.7,0.723]
[1717842401716,0.65425372,3686.7,3685.8,0.21737794]
[1717842401952,2.418,3686.3,3685.8,0.21737794]
[1717842402133,2.93000779,3685.8,3684.7,2.71388]
[1717842402267,3.07583975,3685.7,3684.7,2.71388]
[1717842402472,0.60058475,3685.6,3684.7,2.71388]
[1717842402718,0.60858475,3685.6,3684.7,2.71388]
[1717842403035,2.71341,3685.4,3684.6,0.1234268]
[1717842403175,3.0,3685.3,3684.6,0.1234268]
[1717842404339,0.06784652,3685.2,3684.6,0.1234268]
[1717842404777,0.64677217,3685.2,3684.6,0.1234268]
[1717842405283,1.39285466,3685.1,3684.6,0.1234268]
[1717842405470,0.57892565,3685.2,3684.6,0.1234268]
[1717842407012,1.97178031,3685.2,3684.6,0.1234268]
[1717842407313,1.01111903,3685.1,3684.6,0.1234268]
[1717842407509,4.01111903,3685.1,3684.6,0.1234268]
[1717842408078,4.01111903,3685.1,3684.7,0.19761631]
[1717842408279,1.01111903,3685.1,3684.7,0.19761631]
[1717842408509,3.0,3685.2,3684.7,0.19761631]
[1717842408675,0.008,3685.4,3684.7,0.19761631]
[1717842408874,0.008,3685.6,3684.7,0.19761631]
[1717842412604,4.10620466,3685.5,3684.7,0.19761631]
[1717842412802,3.41142047,3685.4,3684.7,0.19761631]
[1717842413018,4.80427513,3685.4,3684.7,0.19761631]
[1717842413951,3.41142047,3685.4,3684.7,0.19761631]
[1717842415874,2.7135,3685.3,3684.7,0.19761631]
[1717842416018,3.0,3685.2,3684.7,0.19761631]
[1717842416222,3.91329205,3685.2,3684.7,0.19761631]
[1717842417652,5.30614671,3685.2,3684.7,0.19761631]
[1717842419972,4.10651466,3685.1,3684.7,0.19761631]
[1717842420113,4.10651466,3685.1,3684.6,0.1234268]
[1717842420114,3.0,3685.0,3684.6,0.1234268]
[1717842420438,1.39285466,3684.9,3684.6,0.1234268]
[1717842420640,0.71065147,3684.8,3684.6,0.1234268]
[1717842420836,4.10677466,3684.7,3684.6,0.1234268]
[1717842421044,7.10677466,3684.7,3684.6,0.1234268]